bitfinex-derivatives/quotes_ETHF0:USTF0_20251211
["timestamp","ask_amount","ask_price","bid_price","bid_amount"]
[1765465335783,3.21147034,3159.6,3158.9,3.2078]
[1765465335983,3.21147034,3159.6,3158.6,0.00475082]
[1765465335984,3.21147034,3159.6,3158.6,0.16303082]
[1765465336186,3.2078,3159.2,3158.6,0.16303082]
[1765465336386,3.21255082,3159.2,3158.6,0.16303082]
[1765465336685,0.00475082,3159.2,3158.6,0.16303082]
[1765465337483,0.00475082,3159.2,3159.0,2.7924]
[1765465337787,0.00475082,3159.2,3159.1,3.52889317]
[1765465337989,3.2078,3160.0,3159.4,0.15824]
[1765465338687,5.0513,3160.0,3158.9,3.2078]
[1765465338885,6.39153896,3159.6,3158.9,3.2078]
[1765465339184,3.2078,3159.1,3158.6,0.00475082]
[1765465339375,3.2078,3158.7,3157.9,0.15831]
[1765465339581,3.2078,3158.3,3157.5,3.2078]
[1765465340482,0.00475082,3158.2,3157.6,0.00475082]
[1765465341384,0.00475082,3158.2,3157.2,0.00283557]
[1765465341385,6.39153896,3157.8,3157.2,0.00283557]
[1765465341586,3.2078,3157.3,3157.2,0.00283557]
[1765465341783,3.21189971,3157.3,3157.2,0.00283557]
[1765465342090,0.00409971,3157.3,3157.2,0.00283557]
[1765465342685,0.00409971,3157.3,3157.2,3.36898557]
[1765465343186,0.00409971,3157.3,3157.2,0.16118557]
[1765465343489,0.00409971,3157.3,3156.9,0.00475082]
[1765465343788,3.2078,3157.0,3156.5,0.15838]
[1765465344385,3.2078,3157.0,3156.5,0.16222702]
[1765465345588,3.2078,3157.0,3156.5,0.00384702]
[1765465345787,3.2078,3156.6,3156.0,3.2078]
[1765465345989,0.00475082,3156.6,3156.0,3.36621]
[1765465346189,0.00475082,3156.6,3156.1,0.1584]
[1765465346693,3.2078,3156.2,3156.1,0.00301577]
[1765465346987,3.2078,3156.2,3155.5,0.15843]
[1765465347791,3.2078,3155.8,3155.5,0.16148166]
[1765465348288,3.2078,3155.8,3155.5,0.00305166]
[1765465349184,6.39153896,3155.8,3155.5,0.00305166]
[1765465349385,6.39153896,3155.8,3154.4,3.2078]
[1765465349586,3.2078,3155.3,3154.7,0.15847]
[1765465349795,3.18373896,3155.8,3154.7,0.15847]
[1765465349796,3.2078,3154.8,3154.7,0.15847]
[1765465350091,3.2078,3154.8,3154.1,0.1585]
[1765465350282,3.21561059,3154.8,3154.2,0.1585]
[1765465350592,3.2078,3155.6,3154.5,5.9438]
[1765465350888,3.2078,3156.0,3155.3,3.36624]
[1765465351195,3.2078,3156.0,3155.4,0.15844]
[1765465351894,3.21481011,3156.0,3155.4,0.16319082]
[1765465352091,3.2078,3155.6,3155.4,0.16319082]
[1765465352295,3.21481011,3156.0,3155.4,0.16319082]
[1765465353595,3.21481011,3156.0,3155.5,0.15844]
[1765465354295,3.21481011,3156.0,3155.4,0.00475082]
[1765465354696,3.2078,3155.6,3154.8,3.36627]
[1765465354898,3.18373896,3155.5,3154.8,3.36627]
[1765465355194,3.2078,3155.0,3154.8,0.15847]
[1765465355394,3.2078,3155.0,3154.1,0.00147728]
[1765465355586,3.2078,3154.9,3154.5,0.15848]
[1765465355785,3.2078,3154.9,3154.8,0.15847]
[1765465355994,3.2078,3155.3,3154.4,3.2078]
[1765465356296,3.2078,3155.8,3155.2,0.15845]
[1765465356496,3.2078,3155.8,3155.3,0.15845]
[1765465356892,3.2078,3155.8,3155.5,0.15843]
[1765465357092,3.2078,3155.8,3155.7,0.15843]
[1765465357504,3.2078,3155.8,3154.5,3.2078]
[1765465357697,3.2078,3155.0,3154.5,3.36629]
[1765465358897,3.2078,3155.0,3154.6,0.15848]
[1765465359302,2.41186311,3154.9,3154.6,0.15848]
[1765465360596,3.2078,3155.0,3154.1,3.20927728]
[1765465360792,3.2078,3155.5,3155.4,0.15844]
[1765465361797,3.2078,3155.5,3154.9,0.15846]
[1765465361996,2.41186311,3155.2,3154.9,0.15846]
[1765465362903,2.41186311,3155.2,3155.1,3.2078]
[1765465363095,3.2078,3155.5,3155.4,0.15844]
[1765465363709,3.21481011,3156.0,3155.7,0.15842]
[1765465363999,3.21481011,3156.0,3155.1,3.2078]
[1765465364000,2.41186311,3155.9,3155.1,3.2078]
[1765465364203,2.41186311,3155.5,3155.0,0.15846]
[1765465364402,3.21481011,3156.0,3155.2,2.736]
[1765465364596,3.21481011,3156.0,3155.9,0.15842]
[1765465364597,0.00701011,3156.0,3155.9,0.15842]
[1765465365103,3.2078,3156.9,3155.9,3.35399346]
[1765465365302,2.41186311,3156.7,3155.9,3.35399346]
[1765465365498,2.41186311,3156.7,3156.2,3.2078]
[1765465365807,2.41186311,3156.7,3156.2,3.3662]
[1765465366104,2.41428123,3156.7,3156.2,3.3662]
[1765465366494,0.00241812,3156.7,3156.6,0.15838]
[1765465366705,0.00241812,3156.7,3156.6,0.16155645]
[1765465368497,0.00241812,3156.7,3156.6,9.36935645]
[1765465368704,3.2078,3157.3,3157.2,0.15835]
[1765465369006,3.2078,3157.8,3157.2,0.15835]
[1765465369606,3.21009607,3157.8,3157.2,0.15835]
[1765465369905,3.21484689,3157.8,3157.5,0.15834]
[1765465370908,3.21484689,3157.8,3156.6,0.00317645]
[1765465371108,3.21484689,3157.8,3156.9,3.2078]
[1765465371401,3.21484689,3157.8,3157.0,3.32681913]
[1765465371603,3.21484689,3157.8,3156.9,3.2078]
[1765465372403,3.21484689,3157.8,3157.6,0.15833]
[1765465372603,3.21484689,3157.8,3157.7,0.15833]
[1765465373104,0.00704689,3157.8,3157.7,3.36613]
[1765465373805,0.00704689,3157.8,3157.7,0.15833]
[1765465373806,3.21484689,3157.8,3157.7,0.15833]
[1765465374006,0.00704689,3157.8,3157.7,0.15833]
[1765465374203,0.00704689,3157.8,3157.7,12.86050022]
[1765465374409,3.2078,3158.7,3158.6,0.15828]
[1765465375409,6.40188124,3158.7,3158.3,0.00475082]
[1765465375611,3.2105259,3158.7,3158.3,0.00475082]
[1765465375902,0.0027259,3158.7,3158.6,0.15828]
[1765465376103,0.00079634,3158.7,3158.6,0.15828]
[1765465377304,3.20859634,3158.7,3158.3,0.00475082]
[1765465377707,3.20859634,3158.7,3158.3,0.16304082]
[1765465378011,0.00079634,3158.7,3158.3,0.16304082]
[1765465378403,0.00079634,3158.7,3158.3,0.00475082]
[1765465378404,3.20859634,3158.7,3158.3,0.00475082]
[1765465380503,3.20859634,3158.7,3158.5,0.15828]
[1765465381613,3.20859634,3158.7,3157.6,2.4702]
[1765465381910,3.20859634,3158.7,3158.3,0.15829]
[1765465382211,3.20859634,3158.7,3157.6,0.15833]
[1765465382414,3.2078,3158.0,3157.6,0.15833]
[1765465383213,2.5323,3157.6,3157.1,0.15835]
[1765465383507,3.2078,3157.6,3156.8,2.4702]
[1765465383703,3.2078,3157.6,3157.4,0.15834]
[1765465383904,3.2078,3157.6,3157.5,0.15834]
[1765465384205,0.00079634,3158.7,3158.6,0.15828]
[1765465384410,0.00079634,3158.7,3158.6,6.15828]
[1765465384610,0.00079634,3158.7,3158.6,9.57494885]
[1765465385019,0.00475082,3159.0,3158.9,0.15827]
[1765465385209,3.2078,3159.4,3159.3,0.15825]
[1765465385417,3.2078,3160.7,3159.3,3.2078]
[1765465385709,3.2078,3160.7,3159.9,3.2078]
[1765465386100,3.21032869,3160.7,3159.9,3.21144642]
[1765465386303,0.00475082,3160.6,3160.3,0.15819]
[1765465386716,0.00475082,3160.6,3160.5,0.15819]
[1765465388711,0.00475082,3160.6,3160.5,12.95451036]
[1765465389019,3.2078,3161.6,3161.5,0.15814]
[1765465389211,1.13900292,3162.8,3161.5,0.15814]
[1765465389212,3.2078,3162.1,3161.5,0.15814]
[1765465389809,3.21534526,3162.1,3161.5,0.16289082]
[1765465390109,3.2078,3161.6,3161.5,0.00475082]
[1765465390305,3.2078,3161.6,3159.9,0.00364642]
[1765465390306,9.52826109,3161.6,3159.9,0.00364642]
[1765465390506,3.2078,3160.1,3159.9,0.00364642]
[1765465392210,3.2078,3160.1,3160.0,0.15821]
[1765465393109,0.00475082,3160.3,3160.2,0.1582]
[1765465393316,3.2078,3160.6,3160.5,0.15819]
[1765465394316,0.00475082,3160.9,3160.5,6.74345028]
[1765465394510,0.00475082,3160.9,3160.8,0.15817]
[1765465394816,0.00475082,3160.9,3160.8,6.03882028]
[1765465395213,3.2078,3161.8,3161.7,0.15813]
[1765465395414,0.00279444,3162.1,3161.7,0.15813]
[1765465395717,3.2078,3161.8,3161.7,0.15813]
[1765465395917,0.00279444,3162.1,3162.0,0.15811]
[1765465396313,0.00279444,3162.1,3162.0,3.36591]
[1765465396518,0.00279444,3162.1,3162.0,6.87123958]
[1765465396918,0.00475082,3162.4,3162.3,0.1581]
[1765465397111,0.00475082,3162.4,3162.0,12.71312958]
[1765465397112,3.2078,3163.0,3162.7,0.15807]
[1765465397412,3.2078,3163.0,3162.8,0.15807]
[1765465397916,3.21115273,3163.0,3162.8,0.16162008]
[1765465398118,3.21115273,3163.0,3162.9,0.15807]
[1765465398311,0.00335273,3163.0,3162.9,0.15807]
[1765465398508,0.00335273,3163.0,3162.9,3.53551687]
[1765465400522,0.00474308,3163.2,3163.1,0.15806]
[1765465400915,0.00474308,3163.2,3163.1,3.54624988]
[1765465401112,4.308e-05,3163.2,3163.1,9.54624988]
[1765465401516,0.00279931,3163.2,3163.1,9.54624988]
[1765465401924,3.2078,3164.3,3164.2,0.158]
[1765465402815,3.2078,3164.3,3162.4,2.22784526]
[1765465402816,9.2112769,3164.3,3163.9,0.00474308]
[1765465403117,3.2112769,3164.3,3163.9,0.00474308]
[1765465404121,3.2112769,3164.3,3163.9,0.16275308]
[1765465404420,3.2112769,3164.3,3164.2,0.158]
[1765465405620,3.2112769,3164.3,3164.2,3.65155692]
[1765465405820,0.0034769,3164.3,3164.2,3.65155692]
[1765465406125,0.0034769,3164.3,3164.2,0.158]
[1765465406322,0.00156635,3164.6,3164.2,3.61939559]
[1765465406621,0.00156635,3164.6,3163.9,0.00474308]
[1765465406622,3.2078,3164.3,3163.9,0.00474308]
[1765465406825,3.2078,3164.3,3163.9,0.16275308]
[1765465407020,3.2078,3164.3,3164.0,0.15801]
[1765465407326,0.00156635,3164.6,3164.5,0.15799]
[1765465407534,0.00535139,3164.6,3164.5,0.15799]
[1765465409221,6.00535139,3164.6,3163.9,0.00474308]
[1765465409426,2.3136,3164.0,3163.9,0.00474308]
[1765465409835,0.00535139,3164.6,3164.0,2.3243]
[1765465410128,0.00535139,3164.6,3164.5,3.36579]
[1765465410323,0.00535139,3164.6,3164.5,0.15799]
[1765465410524,0.00535139,3164.6,3164.5,3.36579]
[1765465411120,0.00535139,3164.6,3164.5,0.15799]
[1765465411426,0.00535139,3164.6,3163.9,0.00474308]
[1765465411625,3.2078,3164.3,3163.9,0.00474308]
[1765465411823,3.2078,3164.3,3164.2,0.158]
[1765465412027,2.2757,3164.0,3163.4,0.15804]
[1765465412225,3.2078,3163.8,3163.4,0.15804]
[1765465412732,3.2078,3163.8,3162.9,3.2078]
[1765465412934,3.2078,3163.8,3163.7,0.15803]
[1765465413233,3.2078,3164.2,3163.9,0.15801]
[1765465413529,3.0078,3164.2,3163.7,3.2078]
[1765465413734,0.00535139,3164.6,3164.3,0.15799]
[1765465414338,0.00535139,3164.6,3164.5,0.15799]
[1765465417935,3.2078,3165.1,3165.0,0.15796]
[1765465418243,3.2078,3165.9,3165.8,0.15792]
[1765465418442,3.2078,3167.0,3166.4,0.15789]
[1765465418646,3.78716109,3167.1,3165.9,3.6200398]
[1765465418831,2.3136,3168.0,3166.0,0.15791]
[1765465419035,0.00474308,3166.9,3166.3,0.00474308]
[1765465419238,5.4193,3166.4,3166.3,0.00474308]
[1765465419541,5.4193,3166.4,3164.8,2.3243]
[1765465419733,3.2078,3166.0,3165.5,0.15793]
[1765465420235,5.4193,3166.4,3165.5,3.2078]
[1765465420444,3.2078,3166.8,3166.4,0.15789]
[1765465420742,0.00474308,3166.9,3166.7,0.15788]
[1765465420939,0.00474308,3166.9,3166.8,0.15787]
[1765465421240,3.21254308,3166.9,3166.8,0.15787]
[1765465421442,3.21254308,3166.9,3166.3,3.2078]
[1765465421637,3.21254308,3166.9,3166.2,0.1579]
[1765465422041,3.2078,3166.4,3166.2,0.1579]
[1765465422236,5.4846,3166.4,3165.6,0.00474308]
[1765465422539,3.2078,3165.8,3165.6,0.00474308]
[1765465423252,2.2769,3165.6,3164.7,0.15797]
[1765465423440,3.2078,3165.0,3164.7,0.15797]
[1765465423643,3.2078,3165.4,3164.7,0.15797]
[1765465424151,3.2078,3165.8,3164.9,3.2078]
[1765465424352,3.2078,3165.8,3164.9,3.21058794]
[1765465424547,0.00474308,3165.7,3165.5,0.15793]
[1765465425049,0.00474308,3165.7,3165.6,5.80330632]
[1765465425448,4.308e-05,3165.7,3165.6,11.80330632]
[1765465425653,3.2078,3166.4,3166.3,0.1579]
[1765465425847,3.2078,3167.0,3165.9,3.2078]
[1765465426049,3.2078,3167.0,3166.6,0.15788]
[1765465426447,3.1078,3167.0,3166.6,0.15788]
[1765465426749,3.1078,3167.0,3166.1,0.15791]
[1765465426941,3.2078,3166.9,3165.9,3.2078]
[1765465427147,3.2078,3166.9,3166.6,0.15788]
[1765465427746,3.2078,3166.9,3165.9,3.2078]
[1765465428049,3.2078,3169.3,3167.8,0.15782]
[1765465428354,5.5214,3168.8,3167.9,3.36561]
[1765465428552,1.66754828,3170.3,3167.9,3.36561]
[1765465428553,3.2078,3169.3,3168.5,3.2078]
[1765465428742,3.98114828,3170.7,3167.9,3.23429396]
[1765465428743,3.2078,3170.3,3169.7,0.15772]
[1765465428940,3.78716109,3170.5,3168.8,2.22784526]
[1765465429248,2.0781,3169.0,3168.8,0.00248749]
[1765465429451,2.0781,3169.0,3168.6,0.00473439]
[1765465429852,8.0781,3169.0,3167.2,0.15785]
[1765465430049,2.0781,3169.0,3168.4,3.2078]
[1765465430350,2.0781,3169.0,3168.0,3.2078]
[1765465430551,3.78716109,3168.7,3168.0,3.2078]
[1765465430949,0.00473439,3168.7,3168.4,3.2078]
[1765465431454,0.00473439,3168.7,3168.4,3.21015547]
[1765465432055,0.00473439,3168.7,3168.6,0.15778]
[1765465433055,2.0781,3170.0,3169.5,0.15773]
[1765465433453,2.0781,3170.0,3169.8,3.2078]
[1765465434165,3.2078,3169.9,3169.6,0.15773]
[1765465434349,2.0781,3170.0,3169.6,0.15773]
[1765465435051,2.0781,3169.0,3168.7,0.15777]
[1765465435547,2.0781,3169.0,3168.5,3.2078]
[1765465436351,2.0781,3169.0,3168.8,0.15777]
[1765465437261,2.0781,3169.0,3168.9,0.15777]
[1765465437556,2.0781,3169.0,3168.5,3.2078]
[1765465437963,5.2859,3169.0,3168.5,3.2078]
[1765465438353,2.0781,3169.0,3168.8,0.15777]
[1765465438558,3.2078,3169.4,3168.5,3.2078]
[1765465438856,2.0781,3170.0,3169.4,0.15774]
[1765465439064,2.0781,3170.0,3169.5,0.15774]
[1765465439258,2.0781,3170.0,3169.6,0.15773]
[1765465439658,2.0781,3170.0,3169.3,3.2078]
[1765465439859,2.0781,3170.0,3168.4,0.00235547]
[1765465439860,2.0781,3170.0,3169.9,0.15772]
[1765465440260,0.00471413,3170.2,3170.1,0.15771]
[1765465440455,0.00471413,3170.2,3170.1,3.36551]
[1765465441261,2.0781,3170.0,3169.6,3.21253439]
[1765465441464,2.0781,3170.0,3169.9,0.15772]
[1765465441768,0.00471413,3170.2,3169.6,3.21253439]
[1765465441961,0.00471413,3170.2,3170.1,3.36551]
[1765465442765,2.0781,3169.8,3169.7,3.2078]
[1765465442973,2.0781,3169.8,3169.7,2.2078]
[1765465443268,2.0781,3169.8,3169.6,0.00473439]
[1765465443457,5.2859,3169.8,3169.6,0.00473439]
[1765465443966,11.2859,3169.8,3169.1,3.2078]
[1765465444168,5.2859,3169.8,3169.1,3.2078]
[1765465444763,5.2859,3169.8,3169.1,3.21253439]
[1765465445070,5.2859,3169.8,3168.4,0.00235547]
[1765465445071,2.0781,3168.9,3168.4,0.00235547]
[1765465445260,3.2078,3168.7,3168.1,3.2078]
[1765465445463,5.2859,3168.9,3168.1,3.2078]
[1765465445670,5.2859,3168.9,3168.5,0.15778]
[1765465445865,5.2859,3168.9,3168.1,3.2078]
[1765465446070,5.2859,3168.9,3167.0,1.5202]
[1765465446071,3.2078,3168.5,3168.2,0.00473439]
[1765465446363,3.2078,3168.5,3168.2,0.00783133]
[1765465446567,3.2078,3168.4,3168.2,0.00783133]
[1765465446768,2.0781,3167.1,3165.9,3.2078]
[1765465447063,3.78716109,3167.9,3166.9,3.2078]
[1765465447266,5.2859,3168.0,3167.3,0.15784]
[1765465447469,2.0781,3168.0,3167.6,0.15783]
[1765465447665,2.08150579,3168.0,3167.6,0.16011326]
[1765465447967,2.08150579,3168.0,3167.5,0.00473439]
[1765465447968,3.2078,3167.7,3167.5,0.00473439]
[1765465448167,3.78716109,3167.6,3166.8,0.15787]
[1765465448473,3.78716109,3167.6,3166.8,3.36567]
[1765465448664,3.2078,3167.3,3166.8,3.36567]
[1765465448973,3.2078,3167.0,3166.8,0.0022286]
[1765465449272,3.2078,3166.9,3166.8,0.0022286]
[1765465450266,3.2078,3167.5,3166.9,0.15786]
[1765465450970,2.08150579,3168.0,3166.2,0.1579]
[1765465450971,3.2078,3167.0,3166.2,0.1579]
[1765465451170,3.2078,3166.5,3166.2,0.1579]
[1765465451566,2.0781,3167.1,3166.3,3.2078]
[1765465451872,3.2078,3166.7,3166.4,0.00317658]
[1765465452665,0.00473439,3167.0,3166.4,0.00317658]
[1765465453071,0.00473439,3167.0,3166.9,0.15787]
[1765465453870,0.00473439,3167.0,3166.6,3.2078]
[1765465454270,0.00473439,3167.0,3166.9,0.15787]
[1765465454864,0.00473439,3167.0,3166.4,0.16106658]
[1765465455069,3.2078,3166.8,3166.4,0.00317658]
[1765465455474,3.2078,3166.8,3166.5,0.15788]
[1765465455773,2.4048,3166.2,3165.3,0.15794]
[1765465455972,2.39322965,3165.6,3165.3,3.36574]
[1765465456173,3.2078,3165.9,3165.3,0.15794]
[1765465456379,2.39322965,3166.0,3165.3,0.15794]
[1765465456675,3.2078,3165.9,3165.3,0.15794]
[1765465456878,2.39322965,3165.6,3165.3,0.16113511]
[1765465457075,3.21187032,3165.9,3165.3,3.36893511]
[1765465457272,2.39322965,3165.6,3165.3,0.16113511]
[1765465457579,3.2078,3165.5,3165.3,0.16113511]
[1765465457781,3.2078,3165.5,3164.6,0.29204]
[1765465457983,2.39322965,3164.9,3164.6,0.29204]
[1765465458181,0.00473439,3165.4,3164.7,3.8218956]
[1765465458575,0.00473439,3165.4,3164.7,0.15797]
[1765465458783,0.00473439,3165.4,3165.1,3.2078]
[1765465459877,2.39322965,3165.2,3164.7,0.16060019]
[1765465460678,0.00473439,3165.4,3165.0,3.2078]
[1765465460983,0.00473439,3165.4,3165.3,0.15795]
[1765465461478,2.3237,3165.3,3165.0,3.2078]
[1765465461682,3.21187032,3165.9,3164.7,0.00263019]
[1765465461683,0.00407032,3165.9,3165.8,0.15792]
[1765465461975,2.3237,3168.9,3165.8,12.48209489]
[1765465461976,3.2078,3167.7,3165.8,12.48209489]
[1765465462180,3.2078,3167.7,3167.3,0.15784]
[1765465462576,3.2078,3168.3,3167.5,3.2078]
[1765465462781,0.00473439,3168.2,3167.7,0.15782]
[1765465462977,0.00473439,3168.2,3167.6,0.00473438]
[1765465464683,0.00473439,3168.2,3167.5,2.21574992]
[1765465465086,0.00473439,3168.2,3167.5,2.37357992]
[1765465465288,0.00473439,3168.2,3167.5,2.21574992]
[1765465465485,0.00473439,3168.2,3167.7,0.15782]
[1765465465684,0.00473439,3168.2,3168.1,0.15781]
[1765465466788,0.00473439,3168.2,3168.1,3.36561]
[1765465469179,3.2078,3169.4,3168.6,0.15778]
[1765465469379,3.2078,3169.4,3168.6,3.2078]
[1765465469587,3.2078,3169.4,3168.8,0.15777]
[1765465469785,3.2078,3169.8,3169.3,0.15775]
[1765465470085,3.2078,3169.8,3169.4,0.15774]
[1765465470285,5.53532521,3169.8,3169.3,0.00473439]
[1765465470592,3.21162521,3169.8,3169.3,0.00473439]
[1765465471294,3.21162521,3169.8,3169.5,0.15774]
[1765465471789,5.53532521,3169.8,3169.3,0.00473439]
[1765465471995,3.2078,3169.4,3169.3,0.00473439]
[1765465472789,3.2078,3169.4,3169.3,3.439e-05]
[1765465472987,9.2078,3169.4,3169.3,3.439e-05]
[1765465473391,3.2078,3169.4,3169.3,3.439e-05]
[1765465475893,3.2078,3169.4,3168.6,3.2078]
[1765465476092,3.2078,3169.4,3168.6,3.36558]
[1765465476688,3.2078,3168.9,3168.6,0.15778]
[1765465476990,5.5315,3168.9,3168.6,0.15778]
[1765465477293,5.5315,3168.9,3168.2,3.34146]
[1765465477487,3.2078,3168.4,3168.2,0.13366]
[1765465477792,3.2078,3168.4,3167.9,0.15782]
[1765465478494,5.5315,3168.0,3167.7,0.00344337]
[1765465478695,0.00473439,3168.2,3167.7,0.00344337]
[1765465479194,0.00473439,3168.2,3167.7,3.21124337]
[1765465479397,0.00473439,3168.2,3167.8,0.15782]
[1765465479899,0.00473439,3168.2,3167.7,3.21124337]
[1765465482201,0.00473439,3168.2,3167.7,3.36906337]
[1765465484296,0.00473439,3168.2,3167.7,3.21124337]
[1765465484498,0.00473439,3168.2,3168.0,0.15781]
[1765465484693,0.00473439,3168.2,3168.1,0.15781]
[1765465485390,3.2078,3169.1,3168.8,0.15777]
[1765465485788,3.2078,3169.1,3168.2,2.22784526]
[1765465486093,3.2078,3169.5,3169.0,0.15776]
[1765465486692,3.2078,3169.1,3169.0,0.15776]
[1765465487093,3.2078,3169.1,3168.9,0.00473439]
[1765465487294,0.00473439,3169.6,3169.0,3.2078]
[1765465487496,0.00473439,3169.6,3169.5,3.36554]
[1765465487700,0.00473439,3169.6,3169.5,0.15774]
[1765465488201,0.00473439,3169.6,3169.5,3.36554]
[1765465489092,0.00473439,3169.6,3169.4,3.2078]
[1765465489297,0.00473439,3169.6,3169.0,2.22784526]
[1765465489703,0.00473439,3169.6,3169.3,3.2078]
[1765465490609,6.37642919,3169.4,3168.9,0.00473439]
[1765465490904,6.37642919,3169.4,3168.3,2.22784526]
[1765465490905,3.2078,3169.0,3168.3,2.22784526]
[1765465491098,5.41892919,3168.8,3168.2,3.2078]
[1765465491296,5.41892919,3168.8,3168.2,5.43564526]
[1765465492000,3.2078,3168.4,3167.9,2.22784526]
[1765465492497,3.2078,3168.4,3167.8,2.22784526]
[1765465492701,2.2503,3168.0,3167.7,0.00344337]
[1765465492904,5.4581,3168.0,3167.4,2.22784526]
[1765465493195,5.4581,3168.0,3167.1,2.82259036]
[1765465493196,3.2078,3167.6,3167.2,2.22784526]
[1765465493503,3.2078,3167.6,3167.1,2.22784526]
[1765465493995,3.2078,3167.6,3167.3,2.22784526]
[1765465494401,3.2078,3167.6,3167.4,2.22784526]
[1765465494896,0.00473439,3168.0,3167.3,6.18823036]
[1765465495202,0.00473439,3168.0,3167.7,2.25750656]
[1765465496195,0.00473439,3168.0,3167.6,2.25750656]
[1765465496399,3.2078,3167.7,3167.3,2.25750656]
[1765465497397,2.2503,3167.2,3166.5,2.82259036]
[1765465497603,3.2078,3166.7,3166.3,2.82259036]
[1765465497806,3.2078,3166.9,3166.4,2.82259036]
[1765465498005,3.2078,3166.9,3166.6,0.15788]
[1765465498201,3.2078,3167.5,3166.7,0.15788]
[1765465498502,3.2078,3167.0,3166.7,0.15788]
[1765465498704,3.2078,3167.0,3166.0,0.15791]
[1765465498893,5.4581,3166.4,3166.0,0.15791]
[1765465499096,5.4581,3166.4,3165.5,2.82259036]
[1765465499309,3.2078,3165.8,3165.3,0.15794]
[1765465499601,3.2078,3165.4,3165.1,2.82259036]
[1765465499806,3.2078,3165.4,3164.8,3.63452635]
[1765465499999,3.2078,3165.4,3164.8,0.81193599]
[1765465500195,3.2078,3165.4,3164.8,3.63452635]
[1765465500501,3.16862919,3165.9,3164.8,0.81193599]
[1765465500502,3.2078,3165.0,3164.8,0.81193599]
[1765465500699,3.2078,3165.0,3163.6,3.07522066]
[1765465500700,2.2503,3164.8,3163.6,3.07522066]
[1765465500893,3.2078,3163.7,3163.2,6.77302469]
[1765465501095,3.2078,3163.9,3163.1,2.82259036]
[1765465501292,3.21253439,3164.5,3163.8,3.2078]
[1765465501498,0.00321404,3165.0,3164.6,0.15798]
[1765465501692,0.00321404,3165.0,3164.9,3.2078]
[1765465503996,0.00321404,3165.0,3164.6,0.00474203]
[1765465504197,3.2078,3164.8,3164.6,0.00474203]
[1765465504702,3.2078,3164.8,3164.6,4.203e-05]
[1765465504904,2.2503,3164.4,3164.1,3.2078]
[1765465505205,8.62672919,3164.4,3163.5,3.36583]
[1765465505405,3.16862919,3163.8,3163.5,3.2078]
[1765465505599,5.41892919,3164.4,3163.5,3.2078]
[1765465505805,3.2078,3164.1,3163.5,3.2078]
[1765465506004,5.41892919,3164.4,3163.5,3.2078]
[1765465506204,3.2078,3164.1,3163.5,3.2078]
[1765465506403,2.2503,3163.5,3163.1,3.36585]
[1765465506905,0.00474203,3163.6,3163.1,3.2078]
[1765465507104,0.00474203,3163.6,3163.5,3.36584]
[1765465507306,5.41892919,3164.4,3163.5,3.36584]
[1765465507307,2.2503,3164.4,3163.5,3.2078]
[1765465507506,2.2503,3164.4,3164.3,3.2078]
[1765465507811,0.00321404,3165.0,3164.8,0.15797]
[1765465508003,0.00321404,3165.0,3164.9,3.2078]
[1765465508200,0.00321404,3165.0,3164.9,3.36577]
[1765465508905,0.00321404,3165.0,3164.9,3.2078]
[1765465510708,0.00321404,3165.0,3164.9,3.36577]
[1765465510904,2.2503,3166.2,3165.2,0.15795]
[1765465511107,2.2503,3166.2,3165.5,3.2078]
[1765465511512,2.2503,3166.2,3165.9,3.2078]
[1765465511803,3.2078,3166.1,3165.2,3.2078]
[1765465512010,6.02778596,3166.2,3165.6,3.2078]
[1765465512211,3.2078,3166.1,3165.6,0.00227809]
[1765465513409,6.03659545,3166.2,3165.6,0.00227809]
[1765465513607,6.03659545,3166.2,3165.9,3.2078]
[1765465513806,2.25910949,3166.2,3165.9,3.2078]
[1765465514016,0.00880949,3166.2,3166.1,0.15791]
[1765465514306,9.5003,3167.1,3166.1,6.0]
[1765465514512,9.5003,3167.1,3166.6,3.2078]
[1765465514706,9.5003,3167.1,3167.0,3.2078]
[1765465515005,9.5003,3167.1,3166.4,3.2078]
[1765465515400,2.25760346,3167.1,3166.8,3.2078]
[1765465515805,0.00730346,3167.1,3167.0,0.15786]
[1765465516410,5.4581,3168.0,3167.1,0.15785]
[1765465516714,2.2503,3168.0,3167.6,3.2078]
[1765465517511,2.25421995,3168.0,3167.6,3.2078]
[1765465518316,3.2078,3167.9,3167.1,3.2078]
[1765465518608,2.25421995,3168.0,3167.5,3.2078]
[1765465519011,2.25421995,3168.0,3167.9,3.2078]
[1765465519211,3.2078,3168.7,3167.9,3.36966216]
[1765465520208,2.3933,3168.0,3167.9,0.00404216]
[1765465520409,2.3933,3168.0,3167.3,3.2078]
[1765465520715,3.2078,3167.9,3167.3,3.2078]
[1765465520903,3.2078,3167.9,3167.3,2.2078]
[1765465521513,3.2078,3167.9,3167.3,2.21007262]
[1765465521712,3.2078,3167.4,3167.3,0.00227262]
[1765465522316,2.3933,3167.1,3166.4,3.21254203]
[1765465522510,3.77748596,3166.8,3166.4,0.00474203]
[1765465522918,3.2078,3166.5,3166.4,0.00474203]
[1765465523315,3.77748596,3166.8,3166.4,0.00813893]
[1765465523523,3.21253439,3166.9,3166.4,0.00813893]
[1765465523713,0.00473439,3166.9,3166.4,0.00813893]
[1765465524016,3.21253439,3166.9,3166.4,0.00813893]
[1765465524823,3.2078,3166.5,3166.4,0.00813893]
[1765465525426,0.00473439,3166.9,3166.4,3.21593893]
[1765465525722,2.3933,3166.2,3166.0,3.2078]
[1765465526022,2.3933,3166.2,3164.1,5.55546683]
[1765465526023,2.3933,3165.3,3164.6,3.2078]
[1765465526326,6.98528596,3166.1,3165.0,3.36576]
[1765465526524,3.2078,3165.5,3165.0,3.36576]
[1765465526719,3.2078,3165.1,3165.0,0.00283916]
[1765465527114,3.2078,3165.1,3164.1,3.2078]
[1765465527319,3.2078,3165.1,3164.1,3.3658]
[1765465528114,3.2078,3165.1,3164.3,0.00473439]
[1765465528420,2.3933,3165.3,3164.5,3.36578]
[1765465529018,2.3933,3165.3,3164.6,0.15798]
[1765465529422,3.2078,3165.1,3164.3,0.00473439]
[1765465529629,2.3933,3164.4,3164.3,0.00473439]
[1765465529921,5.6011,3167.1,3164.5,3.2078]
[1765465530124,2.3933,3167.1,3166.3,3.2078]